[Event "8. Arber-Schachopen 2019"]
[Site "Bodenmais"]
[Date "2019.08.03"]
[Round "8.9"]
[White "Senner, Peter"]
[Black "Kottmair, Toni"]
[Result "0-1"]
[ECO "C33"]
[WhiteElo "2231"]
[BlackElo "2086"]
[Annotator "NA"]
[PlyCount "112"]
[EventDate "2019.07.27"]
[EventCountry "GER"]
[SourceTitle "playchess.com"]
[Source "ChessBase"]
[SourceQuality "1"]
[TimeControl "40/5400+30:1800+30"]

1. e4 {[%emt 0:00:00]} e5 {[%emt 0:00:00]} 2. f4 {[%emt 0:00:00]} exf4 {[%emt 0:00:00]} 3. Bc4 {[%emt 0:00:00]} d5 {[%emt 0:08:56]} 4. exd5 {[%emt 0:01:38]} Nf6 {[%emt 0:05:16]} 5. Nf3 {[%emt 0:00:35]} Nxd5 {[%emt 0:02:52]} 6. O-O {[%emt 0:01:02]} Be7 {[%emt 0:00:35]} 7. Nc3 {[%emt 0:01:36]} c6 {[%emt 0:05:13]} 8. Nxd5 {[%emt 0:09:52]} cxd5 {[%emt 0:00:06]} 9. Bb5+ {[%emt 0:00:18]} Nc6 {[%emt 0:04:31]} 10. d4 {[%emt 0:00:26]} O-O {[%emt 0:02:14]} 11. Bxf4 {[%emt 0:01:18]} Qb6 {[%emt 0:08:16]} 12. Ba4 {[%emt 0:22:14]} Bf5 {[%emt 0:13:05]} 13. Bb3 {[%emt 0:01:06]} Rad8 {[%emt 0:02:01]} 14. c3 {[%emt 0:00:54]} Na5 {[%emt 0:14:17]} 15. Bc2 {[%emt 0:01:13]} Bxc2 {[%emt 0:06:51]} 16. Qxc2 {[%emt 0:00:02]} Rfe8 {[%emt 0:05:21]} 17. b3 {[%emt 0:03:23]} Bf6 {[%emt 0:04:13]} 18. Rae1 {[%emt 0:01:53]} Nc6 {[%emt 0:03:56]} 19. Bg5 {[%emt 0:01:48]} Rxe1 {[%emt 0:03:24]} 20. Rxe1 {[%emt 0:00:07]} Ne7 {[%emt 0:04:21]} 21. Rxe7 {[%emt 0:01:52]} Bxe7 {[%emt 0:00:01]} 22. Bxe7 {[%emt 0:00:09]} Re8 {[%emt 0:00:04]} 23. Qf5 {[%emt 0:11:21]} Qg6 {[%emt 0:01:42]} 24. Qxg6 {[%emt 0:00:14]} hxg6 {[%emt 0:00:08]} 25. Bg5 {[%emt 0:00:05]} f6 {[%emt 0:00:32]} 26. Bd2 {[%emt 0:00:13]} b5 {[%emt 0:00:48]} 27. Kf2 {[%emt 0:00:24]} Re6 {[%emt 0:00:10]} 28. Ne1 {[%emt 0:00:14]} Ra6 {[%emt 0:00:21]} 29. Nd3 {[%emt 0:00:21]} Rxa2 {[%emt 0:00:21]} 30. Ke3 {[%emt 0:00:08]} a5 {[%emt 0:00:14]} 31. Nf4 {[%emt 0:01:19]} Rb2 {[%emt 0:00:33]} 32. Nxd5 {[%emt 0:00:38]} Rxb3 {[%emt 0:00:13]} 33. Kd3 {[%emt 0:02:08]} Rb2 {[%emt 0:01:41]} 34. Ne3 {[%emt 0:00:25]} Kf7 {[%emt 0:01:38]} 35. c4 {[%emt 0:11:33]} b4 {[%emt 0:01:38]} 36. c5 {[%emt 0:00:10]} a4 {[%emt 0:00:51]} 37. Nc4 {[%emt 0:02:21]} a3 {[%emt 0:00:18]} 38. c6 {[%emt 0:09:47]} a2 {[%emt 0:00:27]} 39. c7 {[%emt 0:00:14]} a1=Q {[%emt 0:00:08]} 40. c8=Q {[%emt 0:02:14]} Qb1+ {[%emt 0:00:51]} 41. Ke2 {[%emt 0:30:30]} Qe4+ {[%emt 0:30:30]} 42. Kf2 {[%emt 0:00:00]} Qxd4+ {[%emt 0:00:00]} 43. Ke2 {[%emt 0:00:00]} Rb3 {[%emt 0:00:00]} 44. Qc7+ {[%emt 0:06:27]} Kg8 {[%emt 0:00:00]} 45. Be3 {[%emt 0:01:30]} Qd3+ {[%emt 0:00:00]} 46. Kf2 {[%emt 0:02:46]} g5 {[%emt 0:00:00]} 47. Qc8+ {[%emt 0:01:02]} Kf7 {[%emt 0:00:00]} 48. g4 {[%emt 0:00:48]} Rc3 {[%emt 0:00:00]} 49. Qc7+ {[%emt 0:04:04]} Kg8 {[%emt 0:00:00]} 50. Qc8+ {[%emt 0:00:47]} Kh7 {[%emt 0:00:00]} 51. Qe6 {[%emt 0:00:14]} Qc2+ {[%emt 0:00:00]} 52. Nd2 {[%emt 0:00:30]} b3 {[%emt 0:00:00]} 53. Qe8 {[%emt 0:00:00]} Rc8 {[%emt 0:00:42]} 54. Qe6 {[%emt 0:01:13]} Rd8 {[%emt 0:00:33]} 55. Ke2 {[%emt 0:00:37]} b2 {[%emt 0:00:39]} 56. Qb6 {[%emt 0:01:29]} Rxd2+ {[%emt 0:00:15]} 0-1

[Event "8. Arber-Schachopen 2019"]
[Site "Bodenmais"]
[Date "2019.08.03"]
[Round "8.10"]
[White "Schleining, Zoya"]
[Black "Peglau, Charis"]
[Result "1-0"]
[ECO "D41"]
[WhiteElo "2339"]
[BlackElo "1540"]
[Annotator "NA"]
[PlyCount "129"]
[EventDate "2019.07.27"]
[EventCountry "GER"]
[SourceTitle "playchess.com"]
[Source "ChessBase"]
[SourceQuality "1"]
[TimeControl "40/5400+30:1800+30"]

1. d4 {[%emt 0:00:00]} d5 {[%emt 0:00:00]} 2. c4 {[%emt 0:00:00]} e6 {[%emt 0:00:00]} 3. Nf3 {[%emt 0:00:00]} Nf6 {[%emt 0:00:00]} 4. Nc3 {[%emt 0:00:00]} c5 {[%emt 0:00:00]} 5. cxd5 {[%emt 0:00:19]} Nxd5 {[%emt 0:00:00]} 6. g3 {[%emt 0:02:47]} cxd4 {[%emt 0:01:48]} 7. Nxd5 {[%emt 0:02:12]} Qxd5 {[%emt 0:00:15]} 8. Qxd4 {[%emt 0:00:41]} Qxd4 {[%emt 0:00:54]} 9. Nxd4 {[%emt 0:00:06]} Bd7 {[%emt 0:02:48]} 10. Bg2 {[%emt 0:00:16]} Nc6 {[%emt 0:00:23]} 11. Nxc6 {[%emt 0:00:31]} Bxc6 {[%emt 0:00:08]} 12. Bxc6+ {[%emt 0:00:11]} bxc6 {[%emt 0:00:07]} 13. Bd2 {[%emt 0:02:15]} f6 {[%emt 0:02:56]} 14. Rc1 {[%emt 0:01:10]} Rb8 {[%emt 0:07:30]} 15. b3 {[%emt 0:00:16]} Kd7 {[%emt 0:00:37]} 16. Rc4 {[%emt 0:06:11]} Be7 {[%emt 0:03:05]} 17. e4 {[%emt 0:09:41]} Rb6 {[%emt 0:06:21]} 18. Ra4 {[%emt 0:03:25]} Rb7 {[%emt 0:01:58]} 19. Rd4+ {[%emt 0:06:44]} Kc8 {[%emt 0:05:15]} 20. Ke2 {[%emt 0:02:28]} Rd7 {[%emt 0:02:03]} 21. Rc4 {[%emt 0:04:58]} Kb7 {[%emt 0:00:41]} 22. Rhc1 {[%emt 0:00:26]} Rc8 {[%emt 0:02:17]} 23. Be3 {[%emt 0:00:30]} e5 {[%emt 0:11:09]} 24. Ra4 {[%emt 0:03:05]} Kb8 {[%emt 0:04:05]} 25. Ra6 {[%emt 0:01:02]} Rdc7 {[%emt 0:01:45]} 26. Rc4 {[%emt 0:02:33]} c5 {[%emt 0:05:47]} 27. Raa4 {[%emt 0:07:37]} Rb7 {[%emt 0:02:14]} 28. Rc2 {[%emt 0:04:53]} Rb5 {[%emt 0:03:28]} 29. Rac4 {[%emt 0:06:20]} Kb7 {[%emt 0:03:28]} 30. Rd2 {[%emt 0:07:47]} Rc7 {[%emt 0:01:52]} 31. f4 {[%emt 0:05:02]} Kc6 {[%emt 0:19:36]} 32. fxe5 {[%emt 0:05:49]} fxe5 {[%emt 0:00:07]} 33. Ra4 {[%emt 0:00:31]} a5 {[%emt 0:05:42]} 34. Rc2 {[%emt 0:06:14]} Kb6 {[%emt 0:01:09]} 35. Bd2 {[%emt 0:00:55]} Rd7 {[%emt 0:00:29]} 36. Bc3 {[%emt 0:00:15]} Bf6 {[%emt 0:00:16]} 37. Rd2 {[%emt 0:03:50]} Rxd2+ {[%emt 0:01:16]} 38. Kxd2 {[%emt 0:00:14]} g6 {[%emt 0:05:39]} 39. Kd3 {[%emt 0:00:38]} Bd8 {[%emt 0:00:30]} 40. Kc4 {[%emt 0:02:02]} Bc7 {[%emt 0:00:22]} 41. Kd5 {[%emt 0:30:40]} Kb7 {[%emt 0:01:56]} 42. Rc4 {[%emt 0:00:00]} Kb6 {[%emt 0:05:05]} 43. Bd2 {[%emt 0:00:00]} Bb8 {[%emt 0:00:54]} 44. Be3 {[%emt 0:00:00]} Kb7 {[%emt 0:02:33]} 45. Rxc5 {[%emt 0:00:00]} Rxc5+ {[%emt 0:01:06]} 46. Bxc5 {[%emt 0:00:00]} Ka6 {[%emt 0:00:57]} 47. Kc6 {[%emt 0:00:00]} h6 {[%emt 0:01:16]} 48. a3 {[%emt 0:00:00]} g5 {[%emt 0:01:11]} 49. b4 {[%emt 0:00:00]} axb4 {[%emt 0:00:25]} 50. axb4 {[%emt 0:00:00]} Ba7 {[%emt 0:02:07]} 51. b5+ {[%emt 0:00:00]} Ka5 {[%emt 0:00:03]} 52. Bxa7 {[%emt 0:00:00]} Kb4 {[%emt 0:00:04]} 53. b6 {[%emt 0:00:00]} Kc4 {[%emt 0:00:07]} 54. b7 {[%emt 0:00:00]} Kd3 {[%emt 0:00:08]} 55. Kd5 {[%emt 0:00:00]} Ke2 {[%emt 0:00:06]} 56. b8=Q {[%emt 0:00:00]} Kf3 {[%emt 0:00:11]} 57. Qb2 {[%emt 0:00:00]} Kg4 {[%emt 0:00:14]} 58. Qf2 {[%emt 0:00:00]} Kh3 {[%emt 0:00:23]} 59. Kxe5 {[%emt 0:00:00]} Kg4 {[%emt 0:00:42]} 60. Qf5+ {[%emt 0:00:00]} Kh5 {[%emt 0:00:08]} 61. Qh3+ {[%emt 0:00:00]} Kg6 {[%emt 0:00:30]} 62. Ke6 {[%emt 0:00:00]} Kg7 {[%emt 0:00:13]} 63. Qf5 {[%emt 0:00:00]} Kg8 {[%emt 0:00:22]} 64. Qf7+ {[%emt 0:00:00]} Kh8 {[%emt 0:00:05]} 65. Bd4# {[%emt 0:00:00]} 1-0

[Event "8. Arber-Schachopen 2019"]
[Site "Bodenmais"]
[Date "2019.08.03"]
[Round "8.11"]
[White "Pap, Misa"]
[Black "Jergler, Karl-Heinz"]
[Result "1-0"]
[ECO "B36"]
[WhiteElo "2461"]
[BlackElo "2094"]
[Annotator "ChessBase"]
[PlyCount "51"]
[EventDate "2019.07.27"]
[EventCountry "GER"]
[SourceTitle "playchess.com"]
[Source "ChessBase"]
[SourceQuality "1"]
[TimeControl "40/5400+30:1800+30"]

1. e4 {[%emt 0:00:00]} c5 {[%emt 0:00:00]} 2. Nf3 {[%emt 0:00:37]} Nc6 {[%emt 0:00:00]} 3. d4 {[%emt 0:01:03]} cxd4 {[%emt 0:01:49]} 4. Nxd4 {[%emt 0:00:05]} g6 {[%emt 0:00:07]} 5. c4 {[%emt 0:00:04]} Nf6 {[%emt 0:00:14]} 6. Nc3 {[%emt 0:00:06]} d6 {[%emt 0:03:17]} 7. Nc2 {[%emt 0:00:10]} Bg7 {[%emt 0:00:10]} 8. Be2 {[%emt 0:00:05]} O-O {[%emt 0:00:19]} 9. O-O {[%emt 0:00:05]} Be6 {[%emt 0:02:21]} 10. Bd2 {[%emt 0:15:03]} Nd7 {[%emt 0:07:12]} 11. Rc1 {[%emt 0:04:35]} Nc5 {[%emt 0:05:49]} 12. b4 {[%emt 0:11:26]} Bxc3 {[%emt 0:00:33]} 13. Bxc3 {[%emt 0:00:08]} Nxe4 {[%emt 0:00:13]} 14. Ba1 {[%emt 0:00:02]} f5 {[%emt 0:05:52]} 15. Nd4 {[%emt 0:24:57]} Nxd4 {[%emt 0:05:23]} 16. Qxd4 {[%emt 0:00:08]} Nf6 {[%emt 0:00:04]} 17. Bf3 {[%emt 0:00:06]} Qd7 {[%emt 0:05:16]} 18. Rfe1 {[%emt 0:00:54]} Bf7 {[%emt 0:04:50]} 19. Qh4 {[%emt 0:00:05]} Kg7 {[%emt 0:00:25]} 20. c5 {[%emt 0:06:34]} Rac8 {[%emt 0:05:33]} 21. Rcd1 {[%emt 0:00:20]} Bxa2 {[%emt 0:04:43]} 22. g4 {[%emt 0:08:47]} h6 {[%emt 0:02:34]} 23. g5 {[%emt 0:07:50]} hxg5 {[%emt 0:00:17]} 24. Qxg5 {[%emt 0:00:03]} Bb3 {[%emt 0:23:00]} 25. Rd2 {[%emt 0:08:56]} Qc7 {[%emt 0:01:27]} 26. Bh5 {[%emt 0:01:51]} 1-0

[Event "8. Arber-Schachopen 2019"]
[Site "Bodenmais"]
[Date "2019.08.03"]
[Round "8.12"]
[White "Schwenkreis, Thomas"]
[Black "Kleibel, Uwe"]
[Result "0-1"]
[ECO "C26"]
[WhiteElo "2048"]
[BlackElo "2217"]
[Annotator "NA"]
[PlyCount "92"]
[EventDate "2019.07.27"]
[EventCountry "GER"]
[SourceTitle "playchess.com"]
[Source "ChessBase"]
[SourceQuality "1"]
[TimeControl "40/5400+30:1800+30"]

1. e4 {[%emt 0:00:00]} e5 {[%emt 0:00:00]} 2. Nc3 {[%emt 0:00:00]} Nf6 {[%emt 0:00:00]} 3. g3 {[%emt 0:00:00]} d5 {[%emt 0:00:00]} 4. exd5 {[%emt 0:00:00]} Nxd5 {[%emt 0:00:00]} 5. Bg2 {[%emt 0:00:00]} Nxc3 {[%emt 0:00:00]} 6. bxc3 {[%emt 0:00:00]} Nc6 {[%emt 0:00:00]} 7. Ne2 {[%emt 0:00:04]} Be6 {[%emt 0:00:05]} 8. O-O {[%emt 0:00:27]} Bd5 {[%emt 0:00:04]} 9. f3 {[%emt 0:00:11]} Qf6 {[%emt 0:02:35]} 10. d3 {[%emt 0:00:16]} Bc5+ {[%emt 0:00:10]} 11. Kh1 {[%emt 0:00:06]} O-O-O {[%emt 0:00:36]} 12. Qe1 {[%emt 0:00:33]} h5 {[%emt 0:01:06]} 13. h4 {[%emt 0:02:20]} Qd6 {[%emt 0:03:54]} 14. c4 {[%emt 0:00:32]} Be6 {[%emt 0:00:03]} 15. f4 {[%emt 0:02:24]} Bg4 {[%emt 0:05:46]} 16. Nc3 {[%emt 0:09:41]} Qd7 {[%emt 0:06:21]} 17. Nd5 {[%emt 0:02:14]} Rhe8 {[%emt 0:02:16]} 18. Qd2 {[%emt 0:05:35]} exf4 {[%emt 0:01:38]} 19. Qxf4 {[%emt 0:02:16]} Bd6 {[%emt 0:21:08]} 20. Qxf7 {[%emt 0:00:13]} Qxf7 {[%emt 0:03:29]} 21. Rxf7 {[%emt 0:00:03]} Re1+ {[%emt 0:00:08]} 22. Rf1 {[%emt 0:02:47]} Rxf1+ {[%emt 0:00:41]} 23. Bxf1 {[%emt 0:00:01]} Bxg3 {[%emt 0:00:28]} 24. Bg5 {[%emt 0:03:54]} Re8 {[%emt 0:02:50]} 25. Kg2 {[%emt 0:02:39]} Bd6 {[%emt 0:01:31]} 26. Ne3 {[%emt 0:01:25]} Bd7 {[%emt 0:01:15]} 27. Be2 {[%emt 0:10:06]} Nd4 {[%emt 0:01:02]} 28. Bxh5 {[%emt 0:00:38]} Rxe3 {[%emt 0:00:11]} 29. Bxe3 {[%emt 0:00:53]} Nxc2 {[%emt 0:00:02]} 30. Bg6 {[%emt 0:16:41]} Nxa1 {[%emt 0:11:14]} 31. d4 {[%emt 0:01:14]} Ba4 {[%emt 0:05:13]} 32. Bc1 {[%emt 0:05:30]} Nc2 {[%emt 0:01:06]} 33. Bb2 {[%emt 0:00:01]} Ne3+ {[%emt 0:00:20]} 34. Kf3 {[%emt 0:01:18]} Nxc4 {[%emt 0:00:07]} 35. Ba1 {[%emt 0:00:01]} Bc6+ {[%emt 0:02:14]} 36. Kg4 {[%emt 0:01:27]} Ne3+ {[%emt 0:02:18]} 37. Kg5 {[%emt 0:03:56]} Be7+ {[%emt 0:00:18]} 38. Kf4 {[%emt 0:00:28]} Ng2+ {[%emt 0:00:49]} 39. Kg4 {[%emt 0:01:38]} Nxh4 {[%emt 0:00:09]} 40. Bf7 {[%emt 0:00:42]} Bd7+ {[%emt 0:01:12]} 41. Kf4 {[%emt 0:31:34]} Bf6 {[%emt 0:30:21]} 42. Bc3 {[%emt 0:01:03]} g5+ {[%emt 0:00:12]} 43. Ke4 {[%emt 0:00:55]} Nf5 {[%emt 0:00:22]} 44. Bg6 {[%emt 0:01:30]} Nd6+ {[%emt 0:00:26]} 45. Kd5 {[%emt 0:01:24]} Kd8 {[%emt 0:00:06]} 46. Bb4 {[%emt 0:00:41]} Ke7 {[%emt 0:00:10]} 0-1

[Event "8. Arber-Schachopen 2019"]
[Site "Bodenmais"]
[Date "2019.08.03"]
[Round "8.13"]
[White "Hoffmann, Sebastian"]
[Black "Glaser, Max"]
[Result "1/2-1/2"]
[ECO "A46"]
[WhiteElo "2199"]
[BlackElo "1949"]
[Annotator "NA"]
[PlyCount "151"]
[EventDate "2019.07.27"]
[EventCountry "GER"]
[SourceTitle "playchess.com"]
[Source "ChessBase"]
[SourceQuality "1"]
[TimeControl "40/5400+30:1800+30"]

1. Nf3 {[%emt 0:00:51]} Nf6 {[%emt 0:00:00]} 2. d4 {[%emt 0:00:06]} e6 {[%emt 0:00:05]} 3. Bg5 {[%emt 0:00:06]} d5 {[%emt 0:00:34]} 4. e3 {[%emt 0:00:24]} h6 {[%emt 0:00:08]} 5. Bh4 {[%emt 0:00:32]} Nbd7 {[%emt 0:00:10]} 6. Bd3 {[%emt 0:00:14]} Be7 {[%emt 0:00:06]} 7. Nbd2 {[%emt 0:00:16]} c5 {[%emt 0:00:51]} 8. c3 {[%emt 0:00:12]} O-O {[%emt 0:00:09]} 9. Ne5 {[%emt 0:01:19]} Nxe5 {[%emt 0:00:33]} 10. dxe5 {[%emt 0:00:01]} Nd7 {[%emt 0:00:11]} 11. Bxe7 {[%emt 0:01:36]} Qxe7 {[%emt 0:00:08]} 12. f4 {[%emt 0:00:04]} f6 {[%emt 0:08:21]} 13. exf6 {[%emt 0:06:52]} Qxf6 {[%emt 0:01:42]} 14. O-O {[%emt 0:02:18]} e5 {[%emt 0:25:00]} 15. e4 {[%emt 0:13:46]} d4 {[%emt 0:06:49]} 16. fxe5 {[%emt 0:06:26]} Qxe5 {[%emt 0:00:13]} 17. Nf3 {[%emt 0:02:26]} Qd6 {[%emt 0:01:42]} 18. cxd4 {[%emt 0:00:52]} cxd4 {[%emt 0:01:46]} 19. Bc4+ {[%emt 0:00:29]} Kh8 {[%emt 0:00:06]} 20. Qxd4 {[%emt 0:00:54]} Qxd4+ {[%emt 0:02:53]} 21. Nxd4 {[%emt 0:00:54]} Re8 {[%emt 0:00:22]} 22. Rae1 {[%emt 0:18:49]} Ne5 {[%emt 0:03:38]} 23. Bb5 {[%emt 0:01:44]} Rd8 {[%emt 0:02:53]} 24. Nf3 {[%emt 0:00:43]} Nxf3+ {[%emt 0:01:00]} 25. Rxf3 {[%emt 0:00:42]} Be6 {[%emt 0:00:38]} 26. a3 {[%emt 0:01:31]} Rac8 {[%emt 0:01:55]} 27. Rd3 {[%emt 0:02:41]} Rxd3 {[%emt 0:02:18]} 28. Bxd3 {[%emt 0:00:00]} Rd8 {[%emt 0:00:08]} 29. Re3 {[%emt 0:02:56]} Kg8 {[%emt 0:01:47]} 30. Kf2 {[%emt 0:05:07]} Kf7 {[%emt 0:02:53]} 31. Rf3+ {[%emt 0:00:25]} Ke7 {[%emt 0:00:07]} 32. Ke3 {[%emt 0:00:09]} Kd6 {[%emt 0:08:52]} 33. Rf2 {[%emt 0:02:14]} Ke5 {[%emt 0:00:19]} 34. Rc2 {[%emt 0:06:14]} Rc8 {[%emt 0:00:07]} 35. Rxc8 {[%emt 0:00:08]} Bxc8 {[%emt 0:00:08]} 36. Bc4 {[%emt 0:00:03]} Bg4 {[%emt 0:01:11]} 37. Bd5 {[%emt 0:00:17]} b6 {[%emt 0:01:05]} 38. Bf7 {[%emt 0:12:18]} Bd1 {[%emt 0:04:20]} 39. Bc4 {[%emt 0:00:17]} Bc2 {[%emt 0:00:27]} 40. Bd5 {[%emt 0:00:30]} Bd1 {[%emt 0:00:34]} 41. Kd2 {[%emt 0:31:15]} Bh5 {[%emt 0:32:02]} 42. Kc3 {[%emt 0:00:18]} Be2 {[%emt 0:05:19]} 43. Bc4 {[%emt 0:09:22]} Bh5 {[%emt 0:00:34]} 44. Bd5 {[%emt 0:00:00]} Be2 {[%emt 0:00:00]} 45. Bc4 {[%emt 0:00:00]} Bh5 {[%emt 0:00:00]} 46. Kd3 {[%emt 0:00:00]} Bd1 {[%emt 0:00:00]} 47. g3 {[%emt 0:00:00]} Bf3 {[%emt 0:00:00]} 48. Bd5 {[%emt 0:00:00]} Bg2 {[%emt 0:00:00]} 49. Ke3 {[%emt 0:00:00]} Bf1 {[%emt 0:00:00]} 50. Bf7 {[%emt 0:00:00]} Bg2 {[%emt 0:00:00]} 51. Bg6 {[%emt 0:00:00]} Bf1 {[%emt 0:00:00]} 52. Bh5 {[%emt 0:00:00]} Bg2 {[%emt 0:00:00]} 53. Bf3 {[%emt 0:00:00]} Bf1 {[%emt 0:00:00]} 54. h4 {[%emt 0:00:00]} Bb5 {[%emt 0:00:00]} 55. Bg4 {[%emt 0:00:00]} Bf1 {[%emt 0:00:00]} 56. Kf3 {[%emt 0:00:00]} Bd3 {[%emt 0:00:00]} 57. Bf5 {[%emt 0:00:00]} Bc2 {[%emt 0:00:00]} 58. Ke3 {[%emt 0:00:00]} Bb1 {[%emt 0:00:00]} 59. Bg6 {[%emt 0:00:00]} Bc2 {[%emt 0:00:00]} 60. Bh7 {[%emt 0:00:00]} Bb1 {[%emt 0:00:00]} 61. Bf5 {[%emt 0:00:10]} Bc2 {[%emt 0:00:00]} 62. b4 {[%emt 0:02:15]} Bb1 {[%emt 0:00:00]} 63. a4 {[%emt 0:01:24]} Bc2 {[%emt 0:00:00]} 64. a5 {[%emt 0:00:03]} Bb1 {[%emt 0:00:00]} 65. axb6 {[%emt 0:00:56]} axb6 {[%emt 0:00:00]} 66. Kf3 {[%emt 0:00:57]} Bd3 {[%emt 0:00:00]} 67. Bg6 {[%emt 0:00:51]} Bc2 {[%emt 0:00:00]} 68. Ke3 {[%emt 0:03:13]} Bb1 {[%emt 0:00:00]} 69. g4 {[%emt 0:00:32]} Bc2 {[%emt 0:00:00]} 70. Bf5 {[%emt 0:00:54]} Bb1 {[%emt 0:00:00]} 71. g5 {[%emt 0:00:31]} hxg5 {[%emt 0:00:00]} 72. hxg5 {[%emt 0:00:01]} Bc2 {[%emt 0:00:00]} 73. Kf3 {[%emt 0:00:56]} Bd3 {[%emt 0:00:00]} 74. Bh7 {[%emt 0:03:00]} Bc2 {[%emt 0:00:00]} 75. Bf5 {[%emt 0:01:12]} Bd3 {[%emt 0:00:00]} 76. Bh7 {[%emt 0:00:55]} 1/2-1/2

[Event "8. Arber-Schachopen 2019"]
[Site "Bodenmais"]
[Date "2019.08.03"]
[Round "8.14"]
[White "Beck, Gerald"]
[Black "Brandsma, Romayn"]
[Result "1/2-1/2"]
[ECO "A20"]
[WhiteElo "2176"]
[BlackElo "1957"]
[Annotator "NA"]
[PlyCount "87"]
[EventDate "2019.07.27"]
[EventCountry "GER"]
[SourceTitle "playchess.com"]
[Source "ChessBase"]
[SourceQuality "1"]
[TimeControl "40/5400+30:1800+30"]

1. c4 {[%emt 0:01:06]} e5 {[%emt 0:00:00]} 2. g3 {[%emt 0:00:12]} c6 {[%emt 0:00:00]} 3. d4 {[%emt 0:05:47]} e4 {[%emt 0:00:43]} 4. Bg2 {[%emt 0:03:01]} Nf6 {[%emt 0:01:51]} 5. Bg5 {[%emt 0:02:52]} d5 {[%emt 0:02:55]} 6. e3 {[%emt 0:12:18]} h6 {[%emt 0:02:25]} 7. Bxf6 {[%emt 0:01:33]} Qxf6 {[%emt 0:00:02]} 8. cxd5 {[%emt 0:08:49]} cxd5 {[%emt 0:01:00]} 9. Nc3 {[%emt 0:04:33]} Bb4 {[%emt 0:04:21]} 10. Nge2 {[%emt 0:06:41]} O-O {[%emt 0:06:40]} 11. O-O {[%emt 0:00:28]} Qd6 {[%emt 0:07:26]} 12. Qb3 {[%emt 0:05:29]} Be6 {[%emt 0:04:44]} 13. Rac1 {[%emt 0:06:00]} Nc6 {[%emt 0:03:17]} 14. Nf4 {[%emt 0:13:28]} Bxc3 {[%emt 0:02:28]} 15. Rxc3 {[%emt 0:01:34]} Na5 {[%emt 0:01:20]} 16. Qc2 {[%emt 0:03:50]} Rfc8 {[%emt 0:01:17]} 17. Nxe6 {[%emt 0:00:39]} Qxe6 {[%emt 0:00:46]} 18. Rc1 {[%emt 0:00:37]} Rc6 {[%emt 0:01:17]} 19. b4 {[%emt 0:05:05]} Rac8 {[%emt 0:02:15]} 20. Rc5 {[%emt 0:05:31]} b6 {[%emt 0:00:58]} 21. Rxc6 {[%emt 0:00:25]} Rxc6 {[%emt 0:00:20]} 22. Qb1 {[%emt 0:00:48]} Rxc1+ {[%emt 0:00:27]} 23. Qxc1 {[%emt 0:00:08]} Nc4 {[%emt 0:00:34]} 24. b5 {[%emt 0:00:42]} Qe8 {[%emt 0:02:30]} 25. a4 {[%emt 0:04:44]} a6 {[%emt 0:02:07]} 26. Qb1 {[%emt 0:01:00]} axb5 {[%emt 0:00:48]} 27. Qxb5 {[%emt 0:00:42]} Qxb5 {[%emt 0:00:16]} 28. axb5 {[%emt 0:00:02]} f5 {[%emt 0:01:57]} 29. Bf1 {[%emt 0:02:24]} Na3 {[%emt 0:01:49]} 30. Be2 {[%emt 0:00:16]} g5 {[%emt 0:01:03]} 31. h3 {[%emt 0:00:33]} Kf7 {[%emt 0:00:24]} 32. Kf1 {[%emt 0:01:13]} f4 {[%emt 0:00:45]} 33. gxf4 {[%emt 0:01:38]} gxf4 {[%emt 0:00:18]} 34. Ke1 {[%emt 0:00:17]} f3 {[%emt 0:00:29]} 35. Bf1 {[%emt 0:00:07]} Kg6 {[%emt 0:06:02]} 36. Kd2 {[%emt 0:01:02]} Kh5 {[%emt 0:01:45]} 37. Kc1 {[%emt 0:00:36]} Kh4 {[%emt 0:01:00]} 38. Kb2 {[%emt 0:00:49]} Nxb5 {[%emt 0:00:01]} 39. Bxb5 {[%emt 0:01:16]} Kxh3 {[%emt 0:00:03]} 40. Bc6 {[%emt 0:00:34]} Kg2 {[%emt 0:00:20]} 41. Bxd5 {[%emt 0:05:52]} Kxf2 {[%emt 0:00:00]} 42. Bxe4 {[%emt 0:08:11]} Kxe3 {[%emt 0:00:00]} 43. Bxf3 {[%emt 0:00:17]} Kxd4 {[%emt 0:00:05]} 44. Kb3 {[%emt 0:00:16] Kd5} 1/2-1/2

[Event "8. Arber-Schachopen 2019"]
[Site "Bodenmais"]
[Date "2019.08.03"]
[Round "8.15"]
[White "Eggeling, Philipp"]
[Black "Hoffmann, Tim"]
[Result "1/2-1/2"]
[ECO "A37"]
[WhiteElo "1869"]
[BlackElo "2147"]
[Annotator "NA"]
[PlyCount "80"]
[EventDate "2019.07.27"]
[EventCountry "GER"]
[SourceTitle "playchess.com"]
[Source "ChessBase"]
[SourceQuality "1"]
[TimeControl "40/5400+30:1800+30"]

1. Nf3 {[%emt 0:00:00]} c5 {[%emt 0:00:00]} 2. c4 {[%emt 0:00:00]} Nc6 {[%emt 0:00:19]} 3. Nc3 {[%emt 0:00:25]} g6 {[%emt 0:00:45]} 4. g3 {[%emt 0:00:02]} Bg7 {[%emt 0:00:25]} 5. Bg2 {[%emt 0:00:10]} e5 {[%emt 0:00:44]} 6. O-O {[%emt 0:00:11]} Nge7 {[%emt 0:00:45]} 7. d3 {[%emt 0:00:50]} O-O {[%emt 0:00:58]} 8. a3 {[%emt 0:01:13]} d6 {[%emt 0:02:41]} 9. Rb1 {[%emt 0:00:08]} f5 {[%emt 0:03:03]} 10. Bd2 {[%emt 0:01:58]} h6 {[%emt 0:02:55]} 11. b4 {[%emt 0:00:21]} Rb8 {[%emt 0:00:40]} 12. b5 {[%emt 0:05:41]} Nd4 {[%emt 0:01:14]} 13. Nxd4 {[%emt 0:00:32]} cxd4 {[%emt 0:02:22]} 14. Nd5 {[%emt 0:00:15]} Be6 {[%emt 0:04:19]} 15. Nxe7+ {[%emt 0:04:48]} Qxe7 {[%emt 0:00:04]} 16. b6 {[%emt 0:04:31]} a6 {[%emt 0:01:00]} 17. Bb4 {[%emt 0:01:21]} Qd7 {[%emt 0:05:30]} 18. Rc1 {[%emt 0:02:09]} Rf7 {[%emt 0:13:45]} 19. c5 {[%emt 0:07:01]} d5 {[%emt 0:01:07]} 20. c6 {[%emt 0:17:22]} bxc6 {[%emt 0:00:05]} 21. Bc5 {[%emt 0:00:46]} Qb7 {[%emt 0:05:23]} 22. Qa4 {[%emt 0:02:20]} Bd7 {[%emt 0:06:40]} 23. Rb1 {[%emt 0:04:32]} f4 {[%emt 0:00:50]} 24. Rfc1 {[%emt 0:09:33]} fxg3 25. hxg3 Bf8 {[%emt 0:09:55]} 26. e4 {[%emt 0:02:21]} dxe3 {[%emt 0:01:16]} 27. Bxe3 {[%emt 0:00:37]} Rf6 {[%emt 0:02:26]} 28. Qh4 {[%emt 0:04:43]} g5 {[%emt 0:07:07]} 29. Qa4 {[%emt 0:01:34]} d4 {[%emt 0:15:12]} 30. Bd2 {[%emt 0:01:05]} c5 {[%emt 0:02:59]} 31. Qc2 {[%emt 0:09:28]} Bc6 {[%emt 0:00:41]} 32. Bxc6 {[%emt 0:02:55]} Rxc6 {[%emt 0:04:06]} 33. Qc4+ {[%emt 0:00:10]} Kg7 {[%emt 0:00:38]} 34. Qd5 {[%emt 0:04:03]} Bd6 {[%emt 0:00:45]} 35. Qe6 {[%emt 0:02:03]} Rxb6 {[%emt 0:02:17]} 36. Rxb6 {[%emt 0:00:30]} Qxb6 {[%emt 0:00:03]} 37. Qd7+ {[%emt 0:00:32]} Kh8 {[%emt 0:01:39]} 38. Ba5 {[%emt 0:00:48]} Qb2 {[%emt 0:00:59]} 39. Qxd6 {[%emt 0:00:55]} Qxc1+ {[%emt 0:00:08]} 40. Kg2 {[%emt 0:00:02]} Rb1 {[%emt 0:00:54]} 1/2-1/2